Cogmind - Beta 16.1 @@@ ROGUE MODE // 2026.03.23 @ 03:19:11 Player: Sen Result: Destroyed by Lightning with EMDS Performance ------------- Evolutions (4) 2000 Regions Visited (11) 2200 Robots Destroyed (114) 570 Value Destroyed (3393) 3393 Prototype IDs (40) 800 Alien Tech Used (0) 0 Bonus (537) 537 TOTAL SCORE: 9500 Bonus ------- Follower Combat Kills 37 Network Hubs Disabled 200 Aligned with FarCom 300 Cogmind --------- Core Integrity 0/850 Matter 280/300 Energy 98/100 System Corruption 12% Temperature Cool (0) Movement Core (50) Location -6/Hub_04(d) Parts ------- > --- POWER (1) -------- (None) > --- PROPULSION (4) --- (None) > --- UTILITY (8) ------ Enhanced Optical Array Advanced Signal Interpreter Advanced Melee Analysis Suite Armor Integrity Analyzer Improved Hacking Suite Improved Hacking Suite Improved System Shield > --- WEAPON (2) ------- (None) > --- INVENTORY (5) ---- Advanced Heat Sink Improved Trap Scanner Improved Sensor Array Microactuators Improved System Restoration Module Peak State ------------ > --- POWER ------------ Light Fission Core > --- PROPULSION ------- Cooled VTOL Module Cooled VTOL Module Cooled VTOL Module Cooled VTOL Module > --- UTILITY ---------- Lightpack 2.0 Advanced Signal Interpreter Core Analyzer Microactuators Hacking Suite System Shield > --- WEAPON ----------- Axe Makeshift Spear > --- INVENTORY -------- Light Nuclear Core Light Nuclear Core Micro Nuclear Core Flexi-carbon Leg Flexi-carbon Leg Armored Huge Wheel VTOL Module VTOL Module Xenon Bombardment Thruster Improved Heat Sink Advanced Heat Sink Matter Compressor Weight Redist. System Improved Trap Scanner Enhanced Optical Array Improved Sensor Array Advanced Terrain Scanner Seismic Detector Advanced Targeting Computer Advanced Melee Analysis Suite Target Analyzer Armor Integrity Analyzer Weapon Cycler Propulsion Shielding Layered Light Armor Plating Focal Shield Improved Shield Generator System Restoration Module Recalibrator Improved Field Recycling Unit Drone Bay Lightning Gun Heavy Laser Autogun Coil Gun Coil Gun Advanced EMP Blaster Improved Datajack Axe [Rating: 96] Favorites ----------- Power Ion Engine Engine Ion Engine Power Core Light Nuclear Core Propulsion Aluminum Leg Treads Light Treads Leg Aluminum Leg Wheel Compact Wheel Hover Unit Gravmag System Flight Unit Cooled VTOL Module Utility Signal Interpreter Device Microactuators Storage Lightpack 2.0 Processor Signal Interpreter Hackware System Shield Protection Improved Propulsion Shielding Weapon Medium Laser Energy Gun Medium Laser Energy Cannon Heavy Particle Cannon Ballistic Gun Light Assault Rifle Ballistic Cannon Flak Cannon Launcher Advanced EMP Blaster Special Weapon Mining Laser Impact Weapon Maul Slashing Weapon Axe Piercing Weapon Makeshift Spear Special Melee Weapon Advanced Datajack Build | -11 -10 -10 -10 -9 -8 -7 -6 -6 -6 -6 -6 ------- Run | Yrd Mat Min Exi Min Mat Fac Fac Ext Cet Arc Hub Slots Evolved 8 | . . . . . 4 2 2 . . . . Power . | . . . . . . . . . . . . Propulsion 2 | . . . . . . 1 1 . . . . Utility 6 | . . . . . 4 1 1 . . . . Weapon . | . . . . . . . . . . . . Parts Attached 117 | 8 13 1 . 4 20 28 8 6 7 16 6 Power 14 | 1 1 . . 1 3 2 2 1 1 2 . Engine 7 | 1 1 . . 1 2 1 . . . 1 . Core 7 | . . . . . 1 1 2 1 1 1 . Reactor . | . . . . . . . . . . . . Propulsion 34 | 3 4 . . . 4 9 1 . 4 7 2 Treads 5 | 1 1 . . . . . . . 1 2 . Leg 11 | 2 3 . . . 3 1 . . 2 . . Wheel 2 | . . . . . 1 1 . . . . . Hover 5 | . . . . . . . . . . 4 1 Flight 11 | . . . . . . 7 1 . 1 1 1 Utility 40 | 2 4 1 . . 6 10 4 3 1 5 4 Device 13 | 1 . . . . 1 5 2 2 1 . 1 Storage 7 | 1 3 1 . . 1 . . . . 1 . Processor 8 | . 1 . . . 1 1 2 . . 2 1 Hackware 6 | . . . . . . 2 . . . 2 2 Protection 6 | . . . . . 3 2 . 1 . . . Artifact . | . . . . . . . . . . . . Weapon 29 | 2 4 . . 3 7 7 1 2 1 2 . Energy Gun 12 | 1 3 . . . 4 2 . 1 . 1 . Energy Cannon 1 | . . . . . . 1 . . . . . Ballistic Gun 6 | 1 . . . 3 1 1 . . . . . Ballistic Cannon 1 | . . . . . . 1 . . . . . Launcher 2 | . . . . . . 2 . . . . . Special Weapon 1 | . 1 . . . . . . . . . . Impact Weapon 1 | . . . . . 1 . . . . . . Slashing Weapon 2 | . . . . . . . 1 1 . . . Piercing Weapon 2 | . . . . . 1 . . . 1 . . Special Melee Weapon 1 | . . . . . . . . . . 1 . Unidentified Prototypes 3 | . . . . . . 2 . . 1 . . Parts Lost 51 | . . . . 6 8 7 1 3 11 3 12 Power 12 | . . . . 1 3 2 1 1 3 . 1 Propulsion 19 | . . . . 2 1 3 . 1 5 . 7 Utility 6 | . . . . . 2 . . 1 1 1 1 Weapon 14 | . . . . 3 2 2 . . 2 2 3 Highest Loss Streak 12 | . . . . 3 3 4 1 3 8 2 12 To Critical Strikes . | . . . . . . . . . . . . Average Backups 20 | 1 7 10 11 12 18 37 37 38 28 14 12 Power 1 | . 1 1 1 . . . 2 2 . . . Propulsion 4 | . 2 3 3 2 4 10 5 6 3 2 2 Utility 9 | . 2 3 4 4 5 14 20 20 18 9 9 Weapon 5 | . 2 2 3 4 7 9 7 7 5 1 . Tool/Special . | . . . . . . . . . . . . Unused Backups 78 | . 3 1 . . 7 19 27 4 2 10 5 Power 4 | . . . . . . . 3 . . 1 . Propulsion 19 | . 2 . . . 3 7 4 1 1 1 . Utility 42 | . 1 1 . . 2 10 15 3 1 4 5 Weapon 11 | . . . . . 2 2 4 . . 3 . Tool/Special 2 | . . . . . . . 1 . . 1 . Average Slot Usage (%) 89 | . 99 99 100 99 77 76 84 85 73 91 89 Engine 7 | . 13 14 14 13 5 6 . . . 2 5 Core 1 | . . . . . 3 . 5 6 1 . . Treads 1 | . 9 . . . . . . . 3 4 . Leg 14 | . 18 28 28 27 16 2 . . 5 2 . Flight 7 | . . . . . . 15 25 25 8 4 . Device 3 | . 3 . . . 9 2 6 5 5 6 1 Storage 10 | . 14 14 14 14 9 7 6 6 6 5 5 Processor 13 | . 10 14 14 14 9 12 11 13 13 24 22 Hackware 5 | . . . . . . 11 13 13 13 13 20 Energy Gun 10 | . 15 27 28 13 12 1 . . 2 1 . Ballistic Gun 4 | . 10 . . 14 2 4 . . . . . Slashing Weapon 1 | . . . . . . . 4 5 4 6 3 Piercing Weapon 1 | . . . . . . 2 5 6 4 2 . Peak Build Rating 96 | 9 9 9 12 12 55 73 96 95 94 94 72 Average Rating 43 | 6 8 8 10 11 48 62 90 93 90 69 63 On Entrance 43 | . 9 8 9 12 12 53 73 93 88 94 70 Avg Prop Armor Cover (%) 11 | 15 . . . . . 13 . . 7 14 . Naked Turns . | . . . . . . . . . . . . Heaviest Build 41 | 14 19 29 29 29 30 24 31 17 17 41 35 Greatest Support 103 | 20 40 20 20 20 23 21 26 20 80 103 36 Greatest Overweight (x) 7 | 1 1 1 1 1 2 7 1 . . 3 . Average Overweight (x) . | . . . 1 1 . . . . . . . Largest Inventory Capacity 40 | 8 25 15 15 15 40 40 40 40 40 40 15 Average Capacity 25 | 7 8 14 15 15 40 40 40 40 40 17 13 Most Carried 40 | 4 9 12 14 15 40 40 40 40 38 28 15 Average Carried 20 | 1 7 10 12 14 18 37 37 39 29 15 12 Final Capacity 40 | 8 10 15 15 15 40 40 40 40 40 15 5 Final Carried 40 | 4 9 11 14 13 35 40 38 37 28 15 5 Class Distribution -------------------- 45% | Mutant 19% | Hauler-Sprinter 9% | Hauler-Mutant 7% | Hauler-Skirmisher 5% | Scavenger-Mutant 3% | Hauler-Assassin 3% | Hauler-Scout Dominant Class ---------------- Mutant | -10/Materials Mutant | -10/Mines Mutant | -10/Exiles Mutant | -9/Mines Hauler-Skirmisher | -8/Materials Hauler-Sprinter | -7/Factory Hauler-Sprinter | -6/Factory Hauler-Sprinter | -6/Extension Hauler-Mutant | -6/Cetus Scavenger-Mutant | -6/Archives Scavenger-Mutant | -6/Hub_04(d) Resources | -11 -10 -10 -10 -9 -8 -7 -6 -6 -6 -6 -6 ----------- Run | Yrd Mat Min Exi Min Mat Fac Fac Ext Cet Arc Hub Matter Collected 2296 | 338 248 55 . 100 279 221 670 120 71 194 . Remotely . | . . . . . . . . . . . . Salvage Created 5241 | 176 445 42 . 263 983 476 1087 696 71 628 374 Parts 258 | 17 23 5 . 21 46 28 41 17 4 42 14 Haulers Intercepted 7 | . 1 . . . 1 . 2 2 . . 1 Recyclers Shooed 3 | . . 1 . . . . 1 1 . . . Parts Field Recycled 14 | . . . . . . 7 7 . . . . Retrieved Matter 184 | . . . . . . 121 63 . . . . Parts Self-Destructed . | . . . . . . . . . . . . Prevented . | . . . . . . . . . . . . Parts Restored . | . . . . . . . . . . . . Kills | -11 -10 -10 -10 -9 -8 -7 -6 -6 -6 -6 -6 ------- Run | Yrd Mat Min Exi Min Mat Fac Fac Ext Cet Arc Hub Combat Hostiles Destroyed 68 | . 12 3 . 10 13 12 7 2 1 4 4 Melee 14 | . . . . . . . 7 2 1 4 . Guns 36 | . 10 3 . 10 11 2 . . . . . Cannons 7 | . . . . . . 7 . . . . . AOE 6 | . . . . . . 3 . . . . 3 Classes Destroyed 13 | 3 4 . . . 4 1 . 1 . . . Worker 9 | 2 . . . 2 2 . 2 . . . 1 Builder 1 | . . . . . . . . 1 . . . Tunneler 5 | 4 . . . . . . 1 . . . . Hauler 7 | . 1 . . . 1 . 2 2 . . 1 Recycler 11 | 1 . . . . 3 1 3 3 . . . Operator 11 | . 1 . . . . 1 . . . 9 . Watcher 2 | . . . . . 1 . 1 . . . . Swarmer 21 | . 5 3 . 8 2 3 . . . . . Grunt 30 | . 7 . . 2 5 7 4 1 . . 4 Duelist 1 | . . . . . 1 . . . . . . Sentry 11 | . . . . . 4 . 2 1 . 4 . Hunter 1 | . . . . . 1 . . . . . . Programmer 3 | . . . . . . 2 1 . . . . Cetus Guard 1 | . . . . . . . . . 1 . . Best Kill Streak 7 | 3 3 3 . 4 7 5 3 2 1 2 5 Combat Bots Only 5 | . 3 3 . 4 4 5 2 1 1 1 4 Max Kills in Single Turn 4 | 1 1 1 . 1 1 2 1 1 1 1 4 Gunslinging . | . . . . . . . . . . . . Exploded 3 | . . . . . . 2 . . . . 3 Melee 1 | . . . . . . . 1 1 1 1 . Uniques/NPCs Destroyed . | . . . . . . . . . . . . Combat | -11 -10 -10 -10 -9 -8 -7 -6 -6 -6 -6 -6 -------- Run | Yrd Mat Min Exi Min Mat Fac Fac Ext Cet Arc Hub Hostile Shots Fired 668 | . 63 17 . 59 126 111 36 33 74 54 95 Missed 214 | . 18 4 . 10 25 30 14 16 27 23 47 Hits 454 | . 45 13 . 49 101 81 22 17 47 31 48 Melee 1 | . . . . . 1 . . . . . . Projectile 453 | . 45 13 . 49 100 81 22 17 47 31 48 Critical Strikes 20 | . . . . 1 3 4 2 1 5 1 3 Actively Blocked 1 | . . . . . 1 . . . . . . Part Disruptions 1 | . . . . . . . . . . . 1 Damage Taken 7308 | . 439 103 . 417 1362 1300 341 428 1291 741 886 Core 1478 | . 43 . . 104 236 205 86 176 288 22 318 Absorbed by Shields . | . . . . . . . . . . . . Redirected to Shielding 117 | . . . . . 117 . . . . . . Ignored by Resistances 81 | . . . . . 81 . . . . . . Regen/Repaired (Parts) 57 | . . . . . . . 57 . . . . Core Remaining (%) 67 | 100 . . . 41 57 70 . . . . . Volleys Fired 228 | 16 49 10 . 36 55 45 . 2 4 10 1 Largest 2 | 2 2 2 . 2 2 2 . 1 1 1 1 Hottest 150 | 60 150 100 . 100 121 120 . 55 55 81 81 Shots Fired 410 | 32 98 20 . 70 99 74 . 2 4 10 1 Gun 349 | 32 92 20 . 70 99 21 . 2 2 10 1 Cannon 48 | . . . . . . 48 . . . . . Launcher 7 | . . . . . . 5 . . 2 . . Special 6 | . 6 . . . . . . . . . . Kinetic 130 | 16 31 . . 38 5 40 . . . . . Thermal 241 | 16 67 20 . 32 70 27 . . . 8 1 Explosive 3 | . . . . . . 3 . . . . . Electromagnetic 36 | . . . . . 24 4 . 2 4 2 . Robot Hit Streak 16 | 5 16 3 . 11 12 12 . . 2 5 . Robot Miss Streak 10 | 4 5 3 . 6 2 10 . . . 2 . Penetration Max . | . . . . . . . . . . . . Secondary Targets 6 | . 3 . . . 3 . . . . . . Max Gunslinging Chain 1 | . 1 . . . 1 . . . . . . Shots Hit Robots 371 | 15 63 8 . 33 75 48 46 23 15 39 6 Core Hits 185 | 8 21 3 . 19 31 38 20 10 4 21 10 Critical Kills . | . . . . . . . . . . . . Critical Parts Destroyed . | . . . . . . . . . . . . Critical Strikes 21 | . 4 1 . . 2 . 6 1 3 3 1 Burn 7 | . 4 1 . . 2 . . . . . . Sever 9 | . . . . . . . 5 1 . 2 1 Impale 5 | . . . . . . . 1 . 3 1 . Melee Attacks 224 | . . . . . 6 11 94 48 15 43 7 Impact 5 | . . . . . 5 . . . . . . Slashing 153 | . . . . . . . 69 40 5 32 7 Piercing 63 | . . . . . 1 11 25 8 10 8 . Sneak Attacks 38 | . . . . . . . 14 8 . 15 1 Combat Hostiles 1 | . . . . . . . 1 . . . . Follow-up Attacks 16 | . . . . . . . 6 3 2 5 . Damage Inflicted 10877 | 178 807 126 . 420 1232 1393 2128 1090 530 1853 1120 Guns 3005 | 178 807 126 . 412 1156 194 . . . 132 . Cannons 645 | . . . . . . 645 . . . . . Explosions 1535 | . . . . . 76 554 . . 117 . 788 Melee 5653 | . . . . . . . 2128 1090 413 1721 301 Ramming 39 | . . . . 8 . . . . . . 31 Kinetic 1117 | 100 313 . . 218 63 423 . . . . . Thermal 2393 | 78 494 126 . 194 847 557 . . . 97 . Explosive 189 | . . . . . . 189 . . . . . Electromagnetic 1486 | . . . . . 322 224 . . 117 35 788 Impact . | . . . . . . . . . . . . Slashing 4629 | . . . . . . . 1591 1011 173 1553 301 Piercing 1024 | . . . . . . . 537 79 240 168 . Highest Corruption 11 | . . . . . . 4 . . . . 11 Average Corruption 4 | . . . . . . 3 . . . . 9 Corruption Purged . | . . . . . . . . . . . . Corruption Blocked . | . . . . . . . . . . . . Effects 5 | . . . . . . 4 . . . . 1 Matter Fused 1 | . . . . . . 1 . . . . . Heat Flow Errors 1 | . . . . . . 1 . . . . . Energy Discharges 1 | . . . . . . 1 . . . . . Data Loss (major) 1 | . . . . . . . . . . . 1 Weapon Failures 1 | . . . . . . 1 . . . . . Overload Shots . | . . . . . . . . . . . . Overflow Damage 590 | . . . . . 5 27 215 181 . 94 68 Projectiles 13 | . . . . . . 13 . . . . . Explosions 64 | . . . . . 5 14 . . . . 45 Melee 513 | . . . . . . . 215 181 . 94 23 Knockbacks 7 | . . . . . . 7 . . . . . Impact . | . . . . . . . . . . . . Kinetic 7 | . . . . . . 7 . . . . . Secondary . | . . . . . . . . . . . . Self-Inflicted Damage 231 | . . . . . 50 61 . . . . 120 Shots 5 | . . . . . 1 3 . . . . 1 Rammed 5 | . . . . . . . . . . . 5 Targets Rammed 7 | . . . . 2 . . . . . . 5 Kicked 2 | . . . . 2 . . . . . . . Crushed . | . . . . . . . . . . . . Highest Temperature 592 | . 213 273 . 176 592 395 . . . 135 57 Average Temperature 119 | . 60 102 . 80 198 123 . . . 47 36 Received Heat Transfer 1581 | . 171 . . 48 396 288 153 99 180 144 102 Effects 18 | . . . . . 17 1 . . . . . Shutdowns 4 | . . . . . 3 1 . . . . . Energy Bleed 1 | . . . . . 1 . . . . . . Interference 5 | . . . . . 5 . . . . . . Matter Decay 1 | . . . . . 1 . . . . . . Short Circuit 2 | . . . . . 2 . . . . . . Damage (minor) 4 | . . . . . 4 . . . . . . Damage (core) 1 | . . . . . 1 . . . . . . Siege Activations . | . . . . . . . . . . . . Martial Activations . | . . . . . . . . . . . . Shielding Activations . | . . . . . . . . . . . . Robots Disrupted . | . . . . . . . . . . . . Combat Hostiles . | . . . . . . . . . . . . Robots Corrupted 2 | . . . . . 1 . . . . . 1 Combat Hostiles 2 | . . . . . 1 . . . . . 1 Parts Fried 2 | . . . . . 2 . . . . . . Impact Corruptions . | . . . . . . . . . . . . Robots Melted 3 | . 2 . . . 1 . . . . . . Combat Hostiles 3 | . 2 . . . 1 . . . . . . Parts Melted 5 | . 1 . . 3 1 . . . . . . Heat Transferred 5867 | 175 1631 444 . 555 2172 742 . . . 148 . Parts Sabotaged . | . . . . . . . . . . . . Parts Stolen . | . . . . . . . . . . . . Parts Stripped . | . . . . . . . . . . . . Power Chain Reactions 2 | . . . . . 1 1 . . . . . Alert | -11 -10 -10 -10 -9 -8 -7 -6 -6 -6 -6 -6 ------- Run | Yrd Mat Min Exi Min Mat Fac Fac Ext Cet Arc Hub Maximum Alert Level 1 | . . . . . . . . . . . 1 Low Security (%) 99 | 100 100 100 . 100 100 100 100 100 100 100 81 Level 1 . | . . . . . . . . . . . 18 Level 2 . | . . . . . . . . . . . . Level 3 . | . . . . . . . . . . . . Level 4 . | . . . . . . . . . . . . Level 5 . | . . . . . . . . . . . . High Security . | . . . . . . . . . . . . Max Security . | . . . . . . . . . . . . Peak Influence 278 | 5 102 60 . 77 101 158 79 160 65 44 278 Initial 68 | . . 26 . . . 35 68 19 41 . 15 Average 23 | 2 15 5 . 13 44 26 37 37 12 5 57 Influence Increases 3067 | 35 390 70 . 255 470 432 394 320 110 187 404 Destroy 0b10 Robot/C 1440 | . 240 60 . 200 260 240 140 120 20 80 80 Destroy 0b10 Robot/NC 230 | 35 10 . . 10 35 10 45 30 . 45 10 Destroy Leader 284 | . 42 10 . 30 74 60 36 20 . . 12 Allied During Kill 9 | . . . . . . . 1 8 . . . Successful Hack 208 | . 32 . . . 29 65 38 36 . . 8 Disable Machine 285 | . . . . . 15 15 45 30 15 60 105 Destroy Structure 191 | . 6 . . . 12 27 29 16 . 2 99 Partial Spotted 45 | . . . . . . 15 15 15 . . . Lose Combat Pursuer 375 | . 60 . . 15 45 . 45 45 75 . 90 Influence Decreases 2809 | 35 321 139 . 255 392 370 494 285 185 143 190 Entered New Map 242 | . . 43 . . . 43 72 21 34 . 29 Time Decay 1973 | 35 198 96 . 225 312 247 412 154 100 143 51 Lost Part 371 | . . . . 30 80 70 10 30 51 . 100 Lost Ally 110 | . 10 . . . . 10 . 80 . . 10 Purge Threat 113 | . 113 . . . . . . . . . . Squads Dispatched 21 | . 2 . . . 3 9 4 . . . 3 Investigation 8 | . 1 . . . 3 1 1 . . . 2 Extermination 5 | . . . . . . 2 3 . . . . Reinforcement 5 | . 1 . . . . 3 . . . . 1 Assault . | . . . . . . . . . . . . Garrison 3 | . . . . . . 3 . . . . . Intercept . | . . . . . . . . . . . . Searches Triggered . | . . . . . . . . . . . . Construction Impeded 1 | . . . . . . 1 . . . . . Haulers Reinforced . | . . . . . . . . . . . . Active Scanning Responses . | . . . . . . . . . . . . Cargo Convoy Interrupts . | . . . . . . . . . . . . Stealth | -11 -10 -10 -10 -9 -8 -7 -6 -6 -6 -6 -6 --------- Run | Yrd Mat Min Exi Min Mat Fac Fac Ext Cet Arc Hub Distress Signals 12 | . 2 . . . 2 . 2 3 2 . 1 Communications Jammed . | . . . . . . . . . . . . Distress Signals . | . . . . . . . . . . . . Times Spotted 139 | . 20 3 . 11 22 17 12 17 8 16 13 Peak Tracking Total 8 | . 5 3 . 4 7 4 5 8 5 2 8 Tactical Retreats 14 | . 2 . . 1 3 . 1 3 2 . 2 Traps | -11 -10 -10 -10 -9 -8 -7 -6 -6 -6 -6 -6 ------- Run | Yrd Mat Min Exi Min Mat Fac Fac Ext Cet Arc Hub Traps Triggered 8 | . 2 . . . . . 2 4 . . . Indirectly . | . . . . . . . . . . . . Trap Hack Attempts . | . . . . . . . . . . . . Triggered . | . . . . . . . . . . . . Disarmed . | . . . . . . . . . . . . Reprogrammed . | . . . . . . . . . . . . Reused . | . . . . . . . . . . . . Traps Extracted . | . . . . . . . . . . . . Installed . | . . . . . . . . . . . . Triggered . | . . . . . . . . . . . . Machines | -11 -10 -10 -10 -9 -8 -7 -6 -6 -6 -6 -6 ---------- Run | Yrd Mat Min Exi Min Mat Fac Fac Ext Cet Arc Hub Machines Disabled 19 | . . . . . 1 1 3 2 1 4 7 Max in Single Turn 7 | . . . . . 1 1 1 1 1 1 7 Network Hub 1 | . . . . . . . . . . . 1 Machines Repaired . | . . . . . . . . . . . . Machines Dismantled . | . . . . . . . . . . . . Machines Sabotaged . | . . . . . . . . . . . . Overloaded Fab Kills . | . . . . . . . . . . . . Hacking | -11 -10 -10 -10 -9 -8 -7 -6 -6 -6 -6 -6 --------- Run | Yrd Mat Min Exi Min Mat Fac Fac Ext Cet Arc Hub Machines Accessed 60 | . 8 . 4 . 8 8 16 9 3 1 3 Terminals 35 | . 7 . . . 4 5 6 7 3 . 3 Fabricators 4 | . . . . . . 1 3 . . . . Repair Stations 5 | . . . . . 1 1 2 1 . . . Recycling Units 6 | . 1 . . . 1 . 3 1 . . . Scanalyzers 3 | . . . . . 2 . 1 . . . . Garrison Access 2 | . . . . . . 1 1 . . . . Total Hacks 202 | . 27 . 7 . 25 29 47 18 12 25 12 Successful 108 | . 15 . 7 . 11 13 22 7 5 25 3 Failed 92 | . 11 . . . 13 16 25 11 7 . 9 Catastrophic 19 | . 1 . . . 2 5 9 . . . 2 Database Lockouts 2 | . 1 . . . 1 . . . . . . Manual 65 | . 22 . 1 . 9 10 14 2 . 1 6 Terminals 117 | . 25 . . . 11 20 24 13 12 . 12 Fabricators 10 | . . . . . . 4 6 . . . . Repair Stations 13 | . . . . . 4 3 4 2 . . . Recycling Units 17 | . 2 . . . 2 . 10 3 . . . Scanalyzers 10 | . . . . . 8 . 2 . . . . Garrison Access 3 | . . . . . . 2 1 . . . . Terminal Hacks 72 | . 8 . 7 . 3 8 8 6 5 25 2 Record 38 | . . . 6 . . . 2 . 5 25 . Part Schematic 1 | . . . . . . 1 . . . . . Robot Analysis 3 | . 2 . . . . . 1 . . . . Prototype ID Bank 5 | . 2 . . . 1 2 . . . . . Open Door 4 | . . . . . . . . 4 . . . Level Access Points 2 | . . . . . . 1 1 . . . . Branch Access Points 1 | . . . . . . . 1 . . . . Terminal Index 1 | . 1 . . . . . . . . . . Unreport Threat 1 | . 1 . . . . . . . . . . Locate Traps 6 | . 1 . . . . 1 2 2 . . . Security Status 1 | . . . . . . 1 . . . . . Recall Reinforcements 1 | . . . . . . . . . . . 1 Zone Layout 7 | . 1 . . . 2 2 1 . . . 1 Proto ID Catalog 1 | . . . 1 . . . . . . . . Fabricator Hacks 2 | . . . . . . 1 1 . . . . Network Status 2 | . . . . . . 1 1 . . . . Repair Station Hacks 7 | . . . . . 1 1 4 1 . . . Scan Component 5 | . . . . . 1 1 2 1 . . . Repair 2 | . . . . . . . 2 . . . . Recycling Unit Hacks 7 | . 1 . . . 1 . 5 . . . . Recycle Component 1 | . . . . . . . 1 . . . . Process 1 | . . . . . . . 1 . . . . Report Inventory 4 | . 1 . . . 1 . 2 . . . . Retrieve Matter 1 | . . . . . . . 1 . . . . Scanalyzer 6 | . . . . . 4 . 2 . . . . Insert Component 3 | . . . . . 2 . 1 . . . . Retrieve Study 3 | . . . . . 2 . 1 . . . . Garrison Access Hacks . | . . . . . . . . . . . . Unauthorized Hacks 14 | . 6 . . . 2 3 2 . . . 1 Terminals 10 | . 5 . . . 2 2 . . . . 1 Assimilate 3 | . 2 . . . . 1 . . . . . Botnet 4 | . 2 . . . 1 1 . . . . . Operators 3 | . 1 . . . 1 . . . . . 1 Fabricators 3 | . . . . . . 1 2 . . . . Fabnet 3 | . . . . . . 1 2 . . . . Repair Stations . | . . . . . . . . . . . . Recycling Units 1 | . 1 . . . . . . . . . . Mask 1 | . 1 . . . . . . . . . . Scanalyzers . | . . . . . . . . . . . . Garrison Access . | . . . . . . . . . . . . Data Cores Recovered 1 | . . . . . . 1 . . . . . Used 1 | . . . . . . 1 . . . . . Hacking Detections 46 | . 7 . . . 8 8 12 6 2 . 3 Full Trace Events 9 | . 2 . . . 3 1 1 . . . 2 Feedback Events . | . . . . . . . . . . . . Feedback Blocked . | . . . . . . . . . . . . Robot Schematics Acquired . | . . . . . . . . . . . . Robots Built . | . . . . . . . . . . . . Authchips . | . . . . . . . . . . . . Time . | . . . . . . . . . . . . Total Robot Build Rating . | . . . . . . . . . . . . Part Schematics Acquired 1 | . . . . . . 1 . . . . . Parts Built . | . . . . . . . . . . . . Authchips . | . . . . . . . . . . . . Time . | . . . . . . . . . . . . Total Part Build Rating . | . . . . . . . . . . . . Part Studies Acquired 3 | . . . . . 2 . 1 . . . . Parts Repaired 1 | . . . . . . . 1 . . . . Time 206 | . . . . . . . 206 . . . . Parts Recycled 1 | . . . . . . . 1 . . . . Recycled Matter 8 | . . . . . . . 8 . . . . Retrieved Matter 8 | . . . . . . . 8 . . . . Retrieved Components . | . . . . . . . . . . . . Parts Scanalyzed 1 | . . . . . 1 . . . . . . Part Schematics Acquired . | . . . . . . . . . . . . Parts Damaged 1 | . . . . . 1 . . . . . . Bothacking | -11 -10 -10 -10 -9 -8 -7 -6 -6 -6 -6 -6 ------------ Run | Yrd Mat Min Exi Min Mat Fac Fac Ext Cet Arc Hub Used RIF Installer . | . . . . . . . . . . . . Robots Hacked 2 | . . . . . . . 1 . . 1 . Non-combat 1 | . . . . . . . . . . 1 . Combat 1 | . . . . . . . 1 . . . . Robot Hacks Applied 3 | . . . . . . . . . . 3 . parse_system 1 | . . . . . . . . . . 1 . no_distress 1 | . . . . . . . . . . 1 . check_alert 1 | . . . . . . . . . . 1 . Relay Couplers Released . | . . . . . . . . . . . . Fabnet Peak Effective % 3 | . . . . . . . 3 3 3 3 3 Autooverrided 1 | . . . . . . . 1 . . . . Robots Rewired . | . . . . . . . . . . . . Allies Hacked . | . . . . . . . . . . . . Hacks Repelled . | . . . . . . . . . . . . Allies | -11 -10 -10 -10 -9 -8 -7 -6 -6 -6 -6 -6 -------- Run | Yrd Mat Min Exi Min Mat Fac Fac Ext Cet Arc Hub Total Allies 7 | . 1 . . . . 1 1 4 . . . Largest Group 4 | . 1 . . . . 1 1 4 . . . Highest-Rated Group 129 | . 10 . . . . 10 29 129 . . . Highest-Rated Ally 39 | . 10 . . . . 10 29 39 . . . Total Orders . | . . . . . . . . . . . . Ally Attacks 57 | . . . . . . . 5 52 . . . Total Damage 635 | . . . . . . . 77 558 . . . Kills 4 | . . . . . . . . 4 . . . Allies Corrupted . | . . . . . . . . . . . . Allies Melted . | . . . . . . . . . . . . Intel | -11 -10 -10 -10 -9 -8 -7 -6 -6 -6 -6 -6 ------- Run | Yrd Mat Min Exi Min Mat Fac Fac Ext Cet Arc Hub Active Infowar (turns) 2004 | 88 350 . . . 990 207 . 330 15 . 24 Optics 24 | . . . . . . . . . . . 24 Terrain 1980 | 88 350 . . . 990 207 . 330 15 . . Robot Analysis Total 3 | . 2 . . . . . 1 . . . . Derelict Logs Recovered 3 | . . 1 . 2 . . . . . . . Drone Launches 2 | . . . . . . . . . . . 2 Drone Recoveries 1 | . . . . . . . . . . . 1 Exploration | -11 -10 -10 -10 -9 -8 -7 -6 -6 -6 -6 -6 ------------- Run | Yrd Mat Min Exi Min Mat Fac Fac Ext Cet Arc Hub Turns Passed 10688 | 185 1262 896 978 1655 1204 1085 1297 825 431 730 140 Spaces Moved 7679 | 98 597 459 515 735 544 859 1822 1051 306 499 194 Core 55 | 8 . . . . . 1 . . . . 46 Treads 439 | 1 208 . . . . . . . 175 55 . Legs 2853 | 89 389 459 515 735 508 . . . 48 110 . Wheels 115 | . . . . . 36 79 . . . . . Hover 482 | . . . . . . . . . . 334 148 Flight 3735 | . . . . . . 779 1822 1051 83 . . Fastest Speed 26 | 50 120 120 190 190 100 29 26 26 26 48 48 Average Speed 92 | 122 134 186 190 190 140 50 26 26 117 113 48 Slowest Speed 400 | 190 190 190 190 190 245 400 91 29 160 280 50 Overloaded Moves . | . . . . . . . . . . . . Propulsion Burnouts . | . . . . . . . . . . . . Robots Hopped 2 | . . . . . . . 2 . . . . Potential Cave-ins . | . . . . . . . . . . . . Cave-ins Triggered . | . . . . . . . . . . . . Exploration Rate (%) 58 | 4 82 82 90 98 32 15 41 64 74 99 24 Regions Visited 11 Branch Regions 7 Pre-discovered Areas 4 | . . 1 1 2 . . . . . . . Known Exits Taken 10 | . 1 1 1 1 1 1 1 1 1 1 . Unknown Exits Taken 1 | 1 . . . . . . . . . . . Scrap Searched 5 | . . 3 . 2 . . . . . . . Spaces Dug 60 | . 6 . . . 6 7 29 9 . 2 1 Terrain Destroyed 240 | . 6 . . . 11 28 29 9 . 2 155 Melee 54 | . . . . . 6 7 29 9 . 2 1 Projectile 8 | . 6 . . . . 2 . . . . . AOE 178 | . . . . . 5 19 . . . . 154 Terrain Rammed . | . . . . . . . . . . . . Walls Destroyed . | . . . . . . . . . . . . Machines Disabled . | . . . . . . . . . . . . Actions | -11 -10 -10 -10 -9 -8 -7 -6 -6 -6 -6 -6 --------- Run | Yrd Mat Min Exi Min Mat Fac Fac Ext Cet Arc Hub Total 10584 | 126 945 480 515 931 876 1429 2546 1542 354 612 228 Wait 1983 | . 263 6 . 141 179 419 559 368 18 20 10 Move 7664 | 97 596 458 514 734 543 858 1817 1050 305 498 194 Hop 2 | . . . . . . . 2 . . . . Pick Up 171 | 4 8 2 1 7 52 37 35 7 . 18 . Fast Attach 36 | 7 6 . . . 3 5 4 . 1 10 . Attach 63 | . 1 1 . 7 14 12 5 4 9 4 6 Detach 18 | . . 1 . 1 4 7 2 1 1 1 . Swap 68 | 2 12 1 . 1 10 19 6 7 4 4 2 Drop 80 | . 10 1 . 2 10 16 25 3 . 10 3 Fire 228 | 16 49 10 . 36 55 45 . 2 4 10 1 Melee 189 | . . . . . 6 11 76 40 12 37 7 Ram 5 | . . . . . . . . . . . 5 Kick 2 | . . . . 2 . . . . . . . Crush . | . . . . . . . . . . . . Escape Stasis 75 | . . . . . . . 15 60 . . . Rewire . | . . . . . . . . . . . . Trap . | . . . . . . . . . . . . Miscellaneous . | . . . . . . . . . . . . Route ------- -11/Scrapyard -10/Materials (discovered 4 exits: *Mat x3 / *Min) -10/Mines (discovered 3 exits: *Mat x2 / *Exi) -10/Exiles -9/Mines (discovered 2 exits: *Mat x2) -8/Materials -7/Factory (discovered 4 exits: *Fac x4) -6/Factory (discovered 8 exits: *Fac x4 / *Low x2 / *Ext x2) -6/Extension (discovered 3 exits: *Fac x2 / *Cet) -6/Cetus (discovered 2 exits: *Fac / *Arc) -6/Archives (discovered 3 exits: *Fac / *Hub x2) -6/Hub_04(d) (discovered 1 exit: *Fac) History --------- Turn | Location | Event 16 | -11/Scrapyard | Discovered new exit (range 15) 186 | -11/Scrapyard | Entered Materials 301 | -10/Materials | Build established: Mutant 525 | -10/Materials | Discovered new exit (range 8) 537 | -10/Materials | Identified exit to Materials 639 | -10/Materials | Discovered new exit (range 12) 677 | -10/Materials | Central database locked down 729 | -10/Materials | Discovered exit to Materials (range 12) 1203 | -10/Materials | Discovered exit to Materials (range 9) 1447 | -10/Materials | Identified exit to Mines 1448 | -10/Materials | Entered Mines 1474 | -10/Mines | Discovered exit to Materials (range 8) 1706 | -10/Mines | Discovered exit to Materials (range 9) 2158 | -10/Mines | Found a damaged Exp. Sensor Array with a note attached 2163 | -10/Mines | Found Prototype Device 2171 | -10/Mines | Deemed a non-threat by the Exiles lab entrance 2335 | -10/Mines | Discovered new exit (range 5) 2342 | -10/Mines | Identified exit to Exiles 2344 | -10/Mines | Entered Exiles 2390 | -10/Exiles | Met 8R-AWN 2419 | -10/Exiles | Met EX-HEX 2498 | -10/Exiles | Met EX-DEC 2562 | -10/Exiles | Visited The Gauntlet 2821 | -10/Exiles | Learned location of Zion (-7) 2882 | -10/Exiles | Met EX-BIN 2914 | -10/Exiles | Aligned with FarCom system 2916 | -10/Exiles | Given EX-Vault access code 2970 | -10/Exiles | Opened EX-Vault 2985 | -10/Exiles | Found Lightpack 2.0 3043 | -10/Exiles | Warned to stay clear of 0b10 Research branches 3307 | -10/Exiles | Discovered new exit (range 10) 3320 | -10/Exiles | Identified exit to Mines 3322 | -10/Exiles | Left Exiles lab with Lightpack 2.0 3322 | -10/Exiles | Entered Mines 3480 | -9/Mines | Lost 3 parts (1p2w) 3908 | -9/Mines | Discovered new exit (range 6) 3919 | -9/Mines | Identified exit to Materials 4077 | -9/Mines | Learned location of Storage (-8) 4149 | -9/Mines | Discovered exit to Materials (range 10) 4453 | -9/Mines | A weapon hastily lodged in a ceiling crevice suddenly fell to the ground 4643 | -9/Mines | Core integrity fell below 50% 4977 | -9/Mines | Entered Materials 4977 | -8/Materials | Evolved 4 slots: Utility x4 5228 | -8/Materials | Lost 3 parts (1p2w) 5531 | -8/Materials | Build established: Hauler-Assassin 5746 | -8/Materials | Central database locked down 5746 | -8/Materials | Identified Exp. Sensor Array 6026 | -8/Materials | Build established: Hauler-Skirmisher 6067 | -8/Materials | Discovered new exit (range 13) 6180 | -8/Materials | Identified exit to Factory 6181 | -8/Materials | Entered Factory 6181 | -7/Factory | Evolved 2 slots: Propulsion x1, Utility x1 6488 | -7/Factory | Build established: Hauler-Sprinter 6492 | -7/Factory | Garrison activated, responded to threat 6623 | -7/Factory | Identified exit to Factory 7077 | -7/Factory | Garrison activated, responded to threat 7145 | -7/Factory | Lost 4 parts (1p2n1w) 7209 | -7/Factory | Lost 3 parts (1p1n1w) 7266 | -7/Factory | Entered another Factory area 7266 | -6/Factory | Evolved 2 slots: Propulsion x1, Utility x1 7537 | -6/Factory | Identified exit to Factory 8173 | -6/Factory | Repaired Cld. VTOL Module 8393 | -6/Factory | Identified exit to Lower Caves 8393 | -6/Factory | Identified exit to Extension 8563 | -6/Factory | Entered Extension 8649 | -6/Extension | Rescued a captive Derelict 9067 | -6/Extension | Build established: Hauler-Scout 9157 | -6/Extension | Rescued a captive Derelict 9229 | -6/Extension | Rescued a captive Derelict 9230 | -6/Extension | Rescued a captive Derelict 9321 | -6/Extension | Spotted B-75 Beast 9327 | -6/Extension | Spotted B-75 Beast 9329 | -6/Extension | Discovered exit to Factory (range 5) 9361 | -6/Extension | Lost 3 parts (1p1n1u) 9378 | -6/Extension | Discovered new exit (range 15) 9378 | -6/Extension | Discovered exit to Factory (range 15) 9387 | -6/Extension | Identified exit to Cetus 9388 | -6/Extension | Disrupted transfer network 9388 | -6/Extension | Entered Cetus 9390 | -6/Cetus | Build established: Hauler-Sprinter 9392 | -6/Cetus | Spotted Cetus Guard 9393 | -6/Cetus | Spotted Cetus Guard 9393 | -6/Cetus | Spotted Cetus Guard 9400 | -6/Cetus | Discovered exit to Factory (range 16) 9410 | -6/Cetus | Spotted Cetus Guard 9458 | -6/Cetus | Core integrity fell below 50% 9468 | -6/Cetus | Lost 8 parts (2p4n1u1w) 9529 | -6/Cetus | Destroyed Cetus Guard 9552 | -6/Cetus | Lost 3 parts (1p1n1w) 9723 | -6/Cetus | Discovered new exit (range 15) 9745 | -6/Cetus | Identified exit to Archives 9784 | -6/Cetus | Spotted Cetus Guard 9784 | -6/Cetus | Spotted Cetus Guard 9819 | -6/Cetus | Entered Archives 10116 | -6/Archives | Unable to access archive contents 10126 | -6/Archives | Discovered exit to Factory (range 16) 10137 | -6/Archives | Discovered new exit (range 14) 10202 | -6/Archives | Unable to access archive contents 10207 | -6/Archives | Discovered new exit (range 15) 10215 | -6/Archives | Unable to access archive contents 10311 | -6/Archives | Unable to access archive contents 10337 | -6/Archives | Unable to access archive contents 10364 | -6/Archives | Identified exit to Hub_04(d) 10416 | -6/Archives | Unable to access archive contents 10457 | -6/Archives | Build established: Scavenger-Mutant 10514 | -6/Archives | Unable to access archive contents 10549 | -6/Archives | Entered Hub_04(d) 10658 | -6/Hub_04(d) | Network Hub disabled 10660 | -6/Hub_04(d) | Core integrity fell below 20% 10663 | -6/Hub_04(d) | Spotted Lightning 10666 | -6/Hub_04(d) | Discovered exit to Factory (range 20) 10666 | -6/Hub_04(d) | Spotted Lightning 10668 | -6/Hub_04(d) | System corruption reached 10% 10669 | -6/Hub_04(d) | Spotted Lightning 10689 | -6/Hub_04(d) | Destroyed by Lightning with EMDS Last Messages --------------- 10665_ EMDS Slug penetrates Wall. 10666_ EXIT=FOUND: FACTORY 10666_ Dropped Imp. Field Recycling Unit. 10666_ Dropped Lrg. Storage Unit. 10666_ K-01 Serf exits level. 10667_ EMDS Slug penetrates Wall. 10667_ G-50 Soldier misfires. 10667_ Penetrated by EMDS Slug. 10667_ Adv. Datajack destroyed. 10667_ EMDS Slug penetrates Earth. 10668_ G-50 Soldier misfires. 10669_ Drone destroyed. 10671_ EMDS Slug penetrates Wall. 10687_ Connecting with Terminal... >>Recall(Reinforcements) Establishing remote squad link... Recalled reinforcement squad L5KC952C0K. 10688_ System corrupted: Substantial component data lost. 10689_ Penetrated by EMDS Slug. Map ----- +----------------------------------------------------+ | ???????????????????????????+ #???????????? | | ???????????????????????????# """" +???????????? | | ???????????????????????????# """" #???????????? | | ???????????????? """" """" ## """" # ??? | | ???????????????? """" """" ## """" # ??? | | ???????????????? ## ##########??? | | ???????????????? """" """" + #???????????# | | ???????????????? """" """" ## ####+##########??? | | ???????????????? """" """" ## # #??? | | ???????????????? """" """" ## # """ """ """ #### | | ???????????????? ## + + | | ????????????????####?######## # ] # | | ???????????????????# #??????# #########+##+## | | ????????????????#### #??#####+#####????# | | ???????????????? #??# #????# = | | ????????????????######??# ###### *!! | | ????????????????????????# * "" + h *!%!= | | ????????????????##?###### "" ######+#####*### | | ???????????????? #?# # " " T" ## # #?? | | ???????????????? #?# #### " " "" ## # #?? | | ???????????????? #?# #??# " " "" ## # #?? | | ???????????????? ### #??# ## # #?? | | ???????????????? ? #########################+### | | ??????# ???????#######T"#????# !## # | | ??????# ############# "###### " " " ## " " " # | | ???####